bitfinex/quotes_BTCUSD_20240915
["timestamp","ask_amount","ask_price","bid_price","bid_amount"]
[1726364250423,3.63977706,60408.0,60407.0,0.40805842]
[1726364251152,3.90464206,60408.0,60407.0,0.40805842]
[1726364252022,3.63977706,60408.0,60407.0,0.40805842]
[1726364252446,3.90464206,60408.0,60407.0,0.40805842]
[1726364252876,3.878644,60408.0,60407.0,0.40805842]
[1726364253561,3.613779,60408.0,60407.0,0.40805842]
[1726364253976,3.878644,60408.0,60407.0,0.40805842]
[1726364254384,3.864644,60408.0,60407.0,0.40805842]
[1726364254827,3.878644,60408.0,60407.0,0.37306842]
[1726364255031,3.878644,60408.0,60407.0,0.33965842]
[1726364255244,3.864644,60408.0,60407.0,0.33965842]
[1726364255662,3.878644,60408.0,60407.0,0.33965842]
[1726364255911,3.864644,60408.0,60407.0,0.33965842]
[1726364256135,3.878644,60408.0,60407.0,0.33965842]
[1726364257377,3.90464224,60408.0,60407.0,0.33965842]
[1726364257813,4.14970081,60408.0,60407.0,0.32865842]
[1726364259483,3.90464224,60408.0,60407.0,0.32865842]
[1726364259700,3.90464224,60408.0,60407.0,0.19562142]
[1726364261441,3.89064224,60408.0,60407.0,0.19562142]
[1726364261650,3.90464224,60408.0,60407.0,0.09450342]
[1726364261860,3.95733181,60408.0,60407.0,0.06139442]
[1726364262069,3.94333181,60408.0,60407.0,0.06139442]
[1726364262283,3.92933181,60408.0,60407.0,0.06139442]
[1726364262496,3.94333181,60408.0,60407.0,0.06139442]
[1726364262722,3.93133357,60408.0,60407.0,0.06139442]
[1726364262958,1.314933,60406.0,60405.0,1.0262]
[1726364263190,2.21679857,60406.0,60405.0,0.74815021]
[1726364263410,3.98768557,60406.0,60405.0,0.75577933]
[1726364263647,4.25255957,60406.0,60405.0,0.75577933]
[1726364263909,4.26990569,60406.0,60405.0,0.75577933]
[1726364264357,4.28390569,60406.0,60405.0,0.75577933]
[1726364264773,4.26990569,60406.0,60405.0,0.75577933]
[1726364265242,4.28390569,60406.0,60405.0,0.75577933]
[1726364265676,4.26990569,60406.0,60405.0,0.75577933]
[1726364265888,4.03303169,60406.0,60405.0,0.75577933]
[1726364266095,4.01903169,60406.0,60405.0,1.26997933]
[1726364266328,4.03303169,60406.0,60405.0,1.26997933]
[1726364266762,4.01903169,60406.0,60405.0,1.26997933]
[1726364266978,4.29790569,60406.0,60405.0,1.26997933]
[1726364267193,4.28390569,60406.0,60405.0,1.26997933]
[1726364267403,4.30990511,60406.0,60405.0,1.26997933]
[1726364268067,4.32390511,60406.0,60405.0,1.26997933]
[1726364268963,4.30990511,60406.0,60405.0,1.26997933]
[1726364269188,4.32390511,60406.0,60405.0,1.26997933]
[1726364269635,4.30990511,60406.0,60405.0,1.26997933]
[1726364269869,4.32390511,60406.0,60405.0,1.26997933]
[1726364272109,4.21777011,60406.0,60405.0,1.16384433]
[1726364272766,4.19177069,60406.0,60405.0,1.16384433]
[1726364272998,4.19177069,60406.0,60405.0,1.16549233]
[1726364275983,4.21777002,60406.0,60405.0,1.16549233]
[1726364277011,4.19177069,60406.0,60405.0,1.15970297]
[1726364280035,4.21777014,60406.0,60405.0,1.15970297]
[1726364282940,4.19177069,60406.0,60405.0,1.15970297]
[1726364283380,4.19177069,60406.0,60405.0,1.12608297]
[1726364283798,4.19177069,60406.0,60405.0,1.11612023]
[1726364284268,4.17777069,60406.0,60405.0,1.11612023]
[1726364284492,4.19177069,60406.0,60405.0,1.11612023]
[1726364285136,4.16377069,60406.0,60405.0,1.11612023]
[1726364285347,4.17777069,60406.0,60405.0,1.11612023]
[1726364285559,4.19259369,60406.0,60405.0,1.11612023]
[1726364286194,4.19259369,60406.0,60405.0,1.08160023]
[1726364287314,4.218593,60406.0,60405.0,1.08160023]
[1726364288769,4.33737792,60406.0,60405.0,1.08160023]
[1726364291433,4.32337792,60406.0,60405.0,1.08160023]
[1726364292302,4.33737792,60406.0,60405.0,1.08160023]
[1726364292747,4.31137861,60406.0,60405.0,1.08160023]
[1726364294123,3.92585412,60406.0,60405.0,1.08160023]
[1726364294361,4.04463904,60406.0,60405.0,1.08160023]
[1726364294580,4.30951304,60406.0,60405.0,1.08160023]
[1726364297186,4.48431304,60406.0,60405.0,1.08160023]
[1726364297436,4.33551214,60406.0,60405.0,1.08160023]
[1726364298963,4.32151214,60406.0,60405.0,1.08160023]
[1726364299428,4.33551214,60406.0,60405.0,1.08160023]
[1726364299850,4.32151214,60406.0,60405.0,1.08160023]
[1726364300099,4.30751214,60406.0,60405.0,1.08160023]
[1726364300312,4.33551214,60406.0,60405.0,1.08160023]
[1726364300743,4.32151214,60406.0,60405.0,1.08160023]
[1726364300969,4.33551214,60406.0,60405.0,1.08160023]
[1726364302748,4.30951304,60406.0,60405.0,1.08160023]
[1726364304277,4.25951304,60406.0,60405.0,1.08160023]
[1726364304547,4.32595704,60406.0,60405.0,1.08160023]
[1726364304761,4.06108304,60406.0,60405.0,1.08160023]
[1726364304989,3.94229812,60406.0,60405.0,1.08160023]
[1726364305208,4.06108304,60406.0,60405.0,1.08160023]
[1726364306059,4.08708065,60406.0,60405.0,1.08160023]
[1726364306502,4.35195465,60406.0,60405.0,1.08160023]
[1726364306745,4.40382852,60406.0,60405.0,1.08160023]
[1726364308965,4.40382852,60406.0,60405.0,0.53123218]
[1726364310043,4.40382852,60406.0,60405.0,0.49611218]
[1726364310721,4.40382852,60406.0,60405.0,0.47855806]
[1726364311590,4.35195465,60406.0,60405.0,0.47855806]
[1726364311801,4.35195465,60406.0,60405.0,0.67515806]
[1726364312091,4.32595704,60406.0,60405.0,0.99255806]
[1726364313575,4.06108304,60406.0,60405.0,0.99255806]
[1726364313804,3.85285412,60406.0,60405.0,0.99255806]
[1726364314024,3.97163904,60406.0,60405.0,0.99255806]
[1726364314245,3.97163904,60406.0,60405.0,1.01011161]
[1726364314459,3.95763904,60406.0,60405.0,1.01011161]
[1726364315150,3.99463904,60406.0,60405.0,1.01011161]
[1726364315375,4.02063605,60406.0,60405.0,1.01011161]
[1726364315591,4.00663605,60406.0,60405.0,1.01011161]
[1726364315817,4.02063605,60406.0,60405.0,1.01011161]
[1726364316031,4.00663605,60406.0,60405.0,1.01011161]
[1726364316254,3.99263605,60406.0,60405.0,1.01011161]
[1726364316481,4.02063605,60406.0,60405.0,1.01011161]
[1726364316938,4.00663605,60406.0,60405.0,1.01011161]
[1726364317214,4.02063605,60406.0,60405.0,1.01011161]
[1726364319472,4.00663605,60406.0,60405.0,0.99255806]
[1726364319733,4.02063605,60406.0,60405.0,0.99255806]
[1726364320608,4.00663605,60406.0,60405.0,0.99255806]
[1726364322122,4.02063605,60406.0,60405.0,0.99255806]
[1726364323012,3.99463904,60406.0,60405.0,0.99255806]
[1726364323228,3.96663904,60406.0,60405.0,0.99255806]
[1726364323664,3.98063904,60406.0,60405.0,0.99255806]
[1726364323872,3.99463904,60406.0,60405.0,0.9779272]
[1726364325892,3.99463904,60406.0,60405.0,0.96390699]
[1726364326321,4.00663641,60406.0,60405.0,0.96390699]
[1726364326561,3.99263641,60406.0,60405.0,0.96390699]
[1726364326765,4.02063641,60406.0,60405.0,0.96390699]
[1726364329577,3.99263641,60406.0,60405.0,0.96390699]
[1726364330026,4.02063641,60406.0,60405.0,0.96390699]
[1726364330234,4.00663641,60406.0,60405.0,0.96390699]
[1726364330662,4.02063641,60406.0,60405.0,0.96390699]
[1726364331772,4.00663641,60406.0,60405.0,0.96390699]
[1726364331989,4.02063641,60406.0,60405.0,0.96390699]
[1726364332181,4.00663641,60406.0,60405.0,0.96390699]
[1726364332446,3.99263641,60406.0,60405.0,0.96390699]
[1726364332633,4.00663641,60406.0,60405.0,0.96390699]
[1726364332878,3.99463904,60406.0,60405.0,0.96390699]
[1726364339532,4.25951304,60406.0,60405.0,0.96390699]
[1726364339755,4.35881959,60406.0,60405.0,0.89768699]
[1726364340228,4.38481711,60406.0,60405.0,0.89768699]
[1726364340464,4.33738443,60406.0,60405.0,0.89768699]
[1726364340690,4.32338443,60406.0,60405.0,0.89768699]
[1726364340909,4.33738443,60406.0,60405.0,0.89768699]
[1726364341144,4.28551056,60406.0,60405.0,0.89768699]
[1726364341354,4.27151056,60406.0,60405.0,0.89768699]
[1726364341572,4.25751056,60406.0,60405.0,0.89768699]
[1726364342011,4.27151056,60406.0,60405.0,0.89768699]
[1726364342226,4.28551056,60406.0,60405.0,0.89768699]
[1726364342793,4.25951304,60406.0,60405.0,0.89768699]
[1726364344551,4.24551304,60406.0,60405.0,0.89768699]
[1726364344804,4.23151304,60406.0,60405.0,0.89768699]
[1726364345023,4.25951304,60406.0,60405.0,0.89768699]
[1726364346101,4.28551042,60406.0,60405.0,0.89768699]
[1726364347162,4.53030355,60406.0,60405.0,0.89768699]
[1726364347373,4.50430617,60406.0,60405.0,0.89768699]
[1726364349326,4.53039564,60406.0,60405.0,0.89768699]
[1726364349547,4.28551042,60406.0,60405.0,0.89768699]
[1726364351787,4.27151042,60406.0,60405.0,0.89768699]
[1726364352009,4.25751042,60406.0,60405.0,0.89768699]
[1726364352229,4.27151042,60406.0,60405.0,0.89768699]
[1726364352891,4.24551304,60406.0,60405.0,0.89768699]
[1726364353527,4.25951304,60406.0,60405.0,0.89768699]
[1726364356176,4.28551082,60406.0,60405.0,0.89768699]
[1726364357294,4.79460082,60406.0,60405.0,0.89768699]
[1726364358777,4.79460082,60406.0,60405.0,0.82522139]
[1726364359645,4.78060082,60406.0,60405.0,0.82522139]
[1726364359852,4.76660082,60406.0,60405.0,0.82522139]
[1726364360486,4.78060082,60406.0,60405.0,0.82522139]
[1726364361136,4.76660082,60406.0,60405.0,0.82522139]
[1726364361371,4.79460082,60406.0,60405.0,0.82522139]
[1726364361599,4.78060082,60406.0,60405.0,0.82522139]
[1726364361822,4.79460082,60406.0,60405.0,0.82522139]
[1726364362955,4.76860304,60406.0,60405.0,0.65967139]
[1726364364924,4.76860304,60406.0,60405.0,0.52723139]
[1726364365807,4.79460102,60406.0,60405.0,0.52723139]
[1726364366261,4.4109421,60406.0,60405.0,0.52723139]
[1726364366481,4.02063702,60406.0,60405.0,0.52723139]
[1726364366970,4.28551102,60406.0,60405.0,0.52723139]
[1726364372920,4.25951304,60406.0,60405.0,0.52723139]
[1726364374426,4.76860304,60406.0,60405.0,0.52723139]
[1726364374634,4.76860304,60406.0,60405.0,0.01323139]
[1726364375080,4.76860304,60406.0,60404.0,1.168917]
[1726364375081,3.18879604,60406.0,60404.0,1.168917]
[1726364375308,2.05263,60405.0,60404.0,1.168917]
[1726364375765,2.05263,60405.0,60404.0,1.18647523]
[1726364375986,3.244581,60405.0,60404.0,1.18647523]
[1726364376648,3.258581,60405.0,60404.0,1.18647523]
[1726364377331,3.28457938,60405.0,60404.0,1.18647523]
[1726364379156,3.29857938,60405.0,60404.0,1.37852123]
[1726364383460,3.29857938,60405.0,60404.0,1.68132123]
[1726364384554,3.36070138,60405.0,60404.0,1.68132123]
[1726364384790,3.069825,60405.0,60404.0,1.68132123]
[1726364385715,3.041825,60405.0,60404.0,1.68132123]
[1726364385938,3.055825,60405.0,60404.0,1.68132123]
[1726364386585,3.041825,60405.0,60404.0,1.68132123]
[1726364386815,3.069825,60405.0,60404.0,1.68132123]
[1726364387551,3.055825,60405.0,60404.0,1.68132123]
[1726364388209,3.08182279,60405.0,60404.0,1.68132123]
[1726364388747,3.06782279,60405.0,60404.0,1.68132123]
[1726364389177,3.08182279,60405.0,60404.0,1.68132123]
[1726364389389,3.09582279,60405.0,60404.0,1.68132123]
[1726364389837,3.06782279,60405.0,60404.0,1.68132123]
[1726364390048,3.08182279,60405.0,60404.0,1.68132123]
[1726364390257,3.09582279,60405.0,60404.0,1.68132123]
[1726364390452,3.08182279,60405.0,60404.0,1.68132123]
[1726364390905,3.09582279,60405.0,60404.0,1.68132123]
[1726364392835,3.069825,60405.0,60404.0,1.68132123]
[1726364395648,3.23762708,60405.0,60404.0,1.68132123]
[1726364396107,3.069825,60405.0,60404.0,1.68132123]
[1726364396701,3.2376126,60405.0,60404.0,1.68132123]
[1726364396905,3.069825,60405.0,60404.0,1.68132123]
[1726364397473,3.26359681,60405.0,60404.0,1.68132123]
[1726364397692,3.09582188,60405.0,60404.0,1.68132123]
[1726364399670,3.26358445,60405.0,60404.0,1.68132123]
[1726364400125,3.09582188,60405.0,60404.0,1.68132123]
[1726364402078,3.09664488,60405.0,60404.0,1.68132123]
[1726364402519,3.36152288,60405.0,60404.0,1.68132123]
[1726364402752,3.070648,60405.0,60404.0,1.68132123]
[1726364403452,3.335526,60405.0,60404.0,1.68132123]
[1726364404406,3.070648,60405.0,60404.0,1.68132123]
[1726364404819,3.335526,60405.0,60404.0,1.68132123]
[1726364406079,3.36152296,60405.0,60404.0,1.68132123]
[1726364406511,3.09664496,60405.0,60404.0,1.68132123]
[1726364407374,3.36152296,60405.0,60404.0,1.68132123]
[1726364412850,3.335526,60405.0,60404.0,1.68132123]
[1726364417948,3.37887198,60405.0,60404.0,1.68132123]
[1726364419212,3.40486961,60405.0,60404.0,1.68132123]
[1726364422882,3.37887198,60405.0,60404.0,1.68132123]
[1726364427441,3.40486968,60405.0,60404.0,1.68132123]
[1726364431478,3.13999168,60405.0,60404.0,1.68132123]
[1726364432173,2.26023568,60405.0,60404.0,1.85256144]
[1726364432416,1.46859282,60405.0,60404.0,1.68132123]
[1726364432652,1.73347082,60405.0,60404.0,1.68132123]
[1726364432894,1.90142083,60405.0,60404.0,1.68132123]
[1726364433366,1.71947082,60405.0,60404.0,1.68132123]
[1726364433657,1.88742083,60405.0,60404.0,1.68132123]
[1726364434351,1.73347082,60405.0,60404.0,1.68132123]
[1726364434580,1.88742083,60405.0,60404.0,1.68132123]
[1726364435026,1.90142083,60405.0,60404.0,1.68132123]
[1726364435485,1.87542313,60405.0,60404.0,1.68132123]
[1726364436187,1.70747312,60405.0,60404.0,1.68132123]
[1726364436424,1.87542313,60405.0,60404.0,1.68132123]
[1726364436685,1.86142313,60405.0,60404.0,1.68132123]
[1726364436919,1.67947312,60405.0,60404.0,1.68132123]
[1726364437146,1.87542313,60405.0,60404.0,1.68132123]
[1726364437614,1.70747312,60405.0,60404.0,1.68132123]
[1726364438582,1.73346825,60405.0,60404.0,1.68132123]
[1726364439337,1.99834625,60405.0,60404.0,1.68132123]
[1726364439833,2.1662135,60405.0,60404.0,1.68132123]
[1726364441069,1.99834625,60405.0,60404.0,1.68132123]
[1726364441497,2.1662135,60405.0,60404.0,1.68132123]
[1726364441978,1.99834625,60405.0,60404.0,1.68132123]
[1726364442433,1.97235112,60405.0,60404.0,1.68132123]
[1726364443730,2.14018217,60405.0,60404.0,1.68132123]
[1726364443935,1.97235112,60405.0,60404.0,1.68132123]
[1726364445630,2.16617448,60405.0,60404.0,1.68132123]
[1726364446716,2.93181748,60405.0,60404.0,1.68132123]
[1726364447144,2.76399063,60405.0,60404.0,1.68132123]
[1726364447378,2.93181748,60405.0,60404.0,1.68132123]
[1726364447639,2.76399063,60405.0,60404.0,1.68132123]
[1726364452813,2.73799412,60405.0,60404.0,1.68132123]
[1726364456075,2.76399,60405.0,60404.0,1.68132123]
[1726364456510,2.93180909,60405.0,60404.0,1.68132123]
[1726364456770,2.76399,60405.0,60404.0,1.68132123]
[1726364457687,2.93180909,60405.0,60404.0,1.68132123]
[1726364457932,2.76399,60405.0,60404.0,1.68132123]
[1726364462741,2.73799412,60405.0,60404.0,1.68132123]
[1726364465592,2.73799412,60405.0,60404.0,1.18812123]
[1726364466308,3.00287212,60405.0,60404.0,1.18812123]
[1726364467032,3.40196212,60405.0,60404.0,0.67955888]
[1726364467952,3.37396212,60405.0,60404.0,0.67955888]
[1726364468195,3.65284012,60405.0,60404.0,0.67955888]
[1726364468630,3.63884012,60405.0,60404.0,0.67955888]
[1726364469322,3.65284012,60405.0,60404.0,0.67955888]
[1726364469549,3.63884012,60405.0,60404.0,0.67955888]
[1726364469769,3.66483955,60405.0,60404.0,0.67955888]
[1726364469994,3.67883955,60405.0,60404.0,0.67955888]
[1726364470222,3.66483955,60405.0,60404.0,0.67955888]
[1726364470465,3.69283955,60405.0,60404.0,0.67955888]
[1726364470935,3.67883955,60405.0,60404.0,0.67955888]
[1726364471376,3.69283955,60405.0,60404.0,0.67955888]
[1726364472309,3.67883955,60405.0,60404.0,0.67955888]
[1726364472736,3.66684012,60405.0,60404.0,0.67955888]
[1726364473209,3.66684012,60405.0,60404.0,0.54711888]
[1726364473210,3.65284012,60405.0,60404.0,0.54711888]
[1726364473423,3.66684012,60405.0,60404.0,0.51400888]
[1726364473862,3.66684012,60405.0,60404.0,0.34845888]
[1726364474083,3.55625012,60405.0,60404.0,0.34845888]
[1726364474318,3.58425012,60405.0,60404.0,0.34845888]
[1726364474774,2.68077086,60405.0,60404.0,0.01828089]
[1726364475016,2.68077086,60405.0,60402.0,2.2228]
[1726364475017,1.608491,60403.0,60402.0,0.50163889]
[1726364475231,11.05402542,60403.0,60402.0,0.12068089]
[1726364475457,11.05402542,60403.0,60401.0,1.5086]
[1726364475458,1.843618,60402.0,60401.0,1.38907669]
[1726364475701,11.85733427,60402.0,60401.0,1.38907669]
[1726364475935,11.95453835,60402.0,60401.0,1.22351669]
[1726364476180,12.24543297,60402.0,60401.0,1.22351669]
[1726364476386,11.55380497,60402.0,60401.0,1.22351669]
[1726364476855,11.56780497,60402.0,60401.0,1.19040469]
[1726364477076,11.58180497,60402.0,60401.0,1.04295669]
[1726364477814,11.58180497,60402.0,60401.0,1.00984469]
[1726364478295,11.58180497,60402.0,60401.0,0.84390669]
[1726364478746,11.58180497,60402.0,60401.0,0.81079469]
[1726364479205,11.56780497,60402.0,60401.0,0.77768269]
[1726364479421,11.55380497,60402.0,60401.0,0.67834669]
[1726364479671,11.56780497,60402.0,60401.0,0.65334669]
[1726364479885,11.56702097,60402.0,60401.0,0.48778669]
[1726364480109,11.53902097,60402.0,60401.0,0.48778669]
[1726364480322,11.56702097,60402.0,60401.0,0.48778669]
[1726364480559,11.56702097,60402.0,60401.0,0.43953259]
[1726364480796,11.53902097,60402.0,60401.0,0.37330859]
[1726364481025,1.979928,60401.0,60400.0,4.32422024]
[1726364481267,6.68147,60401.0,60400.0,4.32422024]
[1726364481506,6.96457,60401.0,60400.0,4.32422024]
[1726364481742,7.229466,60401.0,60400.0,4.24893822]
[1726364481976,7.229466,60401.0,60400.0,4.21582522]
[1726364482198,7.229466,60401.0,60400.0,4.11719922]
[1726364482440,7.229466,60401.0,60400.0,4.13524746]
[1726364482660,7.28133987,60401.0,60400.0,4.13524746]
[1726364482888,7.28133987,60401.0,60400.0,3.96968246]
[1726364483374,7.46264852,60401.0,60400.0,3.96968246]
[1726364483593,7.47664852,60401.0,60400.0,3.96968246]
[1726364483835,7.47664852,60401.0,60400.0,3.93656946]
[1726364484074,7.44864852,60401.0,60400.0,3.87034346]
[1726364484313,6.38411887,60401.0,60400.0,3.78811746]
[1726364484551,6.39811887,60401.0,60400.0,3.78811746]
[1726364484840,6.39811887,60401.0,60400.0,3.75500446]
[1726364485070,6.67701487,60401.0,60400.0,3.62255246]
[1726364485509,6.41211887,60401.0,60400.0,3.62419846]
[1726364485724,6.41211887,60401.0,60400.0,3.59108546]
[1726364485938,6.170318,60401.0,60400.0,3.45863346]
[1726364486164,5.440451,60401.0,60400.0,3.45863346]
[1726364486788,5.440451,60401.0,60400.0,3.42552046]
[1726364487035,5.426451,60401.0,60400.0,3.39240746]
[1726364487252,5.412451,60401.0,60400.0,3.29306846]
[1726364487506,5.440451,60401.0,60400.0,3.29306846]
[1726364487996,5.440451,60401.0,60400.0,3.19372946]
[1726364488234,5.60765722,60401.0,60400.0,3.12750346]
[1726364488684,6.46065722,60401.0,60400.0,3.12750346]
[1726364488897,6.46065722,60401.0,60400.0,3.09439046]
[1726364489110,6.46065722,60401.0,60400.0,3.02816446]
[1726364489318,6.46065394,60401.0,60400.0,2.96193846]
[1726364490729,6.46063811,60401.0,60400.0,2.96193846]
[1726364490963,6.48664317,60401.0,60400.0,2.96193846]
[1726364491491,9.5075572,60401.0,60400.0,2.96193846]
[1726364491737,8.72376509,60401.0,60400.0,2.96193846]
[1726364491966,4.84985106,60401.0,60400.0,2.96193846]
[1726364492639,4.83585106,60401.0,60400.0,2.96193846]
[1726364492848,4.86185844,60401.0,60400.0,2.96193846]
[1726364493059,4.51185844,60401.0,60400.0,2.96193846]
[1726364493293,4.87585844,60401.0,60400.0,2.96193846]
[1726364493530,4.92585844,60401.0,60400.0,2.96193846]
[1726364493960,4.88885844,60401.0,60400.0,2.96193846]
[1726364494179,4.87485844,60401.0,60400.0,2.96193846]
[1726364494419,4.88885844,60401.0,60400.0,2.96193846]
[1726364495313,4.91185844,60401.0,60400.0,2.96193846]
[1726364496460,4.92585844,60401.0,60400.0,2.96193846]
[1726364496911,8.79977247,60401.0,60400.0,2.96193846]
[1726364497142,8.96697973,60401.0,60400.0,2.96193846]
[1726364497366,8.96697973,60401.0,60400.0,2.94389022]
[1726364498030,8.79977247,60401.0,60400.0,2.94389022]
[1726364498659,5.95205847,60401.0,60400.0,2.94389022]
[1726364498880,9.96055147,60401.0,60400.0,2.94389022]
[1726364499092,9.96055147,60401.0,60400.0,2.96205706]
[1726364499323,9.96055147,60401.0,60400.0,2.94389022]
[1726364499804,9.93255147,60401.0,60400.0,2.94389022]
[1726364500040,9.96055147,60401.0,60400.0,2.94389022]
[1726364500688,10.20453467,60401.0,60400.0,2.94389022]
[1726364501389,9.96055147,60401.0,60400.0,2.94389022]
[1726364501609,10.20457673,60401.0,60400.0,2.94389022]
[1726364502273,9.94655147,60401.0,60400.0,2.94389022]
[1726364502495,9.93255147,60401.0,60400.0,2.94389022]
[1726364502718,10.02700347,60401.0,60400.0,2.94389022]
[1726364502927,10.01300347,60401.0,60400.0,2.94389022]
[1726364503140,9.99900347,60401.0,60400.0,2.94389022]
[1726364503360,10.01300347,60401.0,60400.0,2.94389022]
[1726364503586,10.02700347,60401.0,60400.0,2.94389022]
[1726364506090,10.02700347,60401.0,60400.0,2.91077722]
[1726364507045,10.29189947,60401.0,60400.0,2.91077722]
[1726364509093,10.26389947,60401.0,60400.0,2.91077722]
[1726364509538,10.29189947,60401.0,60400.0,2.91077722]
[1726364509753,10.29189947,60401.0,60400.0,2.87766422]
[1726364509965,10.27789947,60401.0,60400.0,2.74521222]
[1726364510237,6.41798544,60401.0,60400.0,2.74521222]
[1726364510442,6.40398544,60401.0,60400.0,2.74521222]
[1726364510660,6.41880844,60401.0,60400.0,2.74521222]
[1726364511321,6.41880844,60401.0,60400.0,2.57964722]
[1726364511831,6.41880844,60401.0,60400.0,2.54653422]
[1726364512078,6.41880844,60401.0,60400.0,2.51342122]
[1726364512308,6.41880844,60401.0,60400.0,2.44719522]
[1726364512534,6.41880844,60401.0,60400.0,2.41408222]
[1726364512979,6.41880844,60401.0,60400.0,2.28163022]
[1726364513193,6.41880844,60401.0,60400.0,2.24851722]
[1726364513409,6.41880844,60401.0,60400.0,2.26666254]
[1726364514268,6.41880844,60401.0,60400.0,1.96070564]
[1726364514724,6.41880844,60401.0,60400.0,1.92759264]
[1726364515427,10.29272247,60401.0,60400.0,1.79514064]
[1726364515655,10.29272247,60401.0,60400.0,1.77914064]
[1726364515879,10.26671741,60401.0,60400.0,1.59543032]
[1726364516319,10.26671741,60401.0,60400.0,1.61358692]
[1726364517518,10.25271741,60401.0,60400.0,1.61358692]
[1726364517973,10.26671741,60401.0,60400.0,1.61358692]
[1726364518404,10.25271741,60401.0,60400.0,1.61358692]
[1726364518842,10.29272226,60401.0,60400.0,1.60524692]
[1726364519511,10.27872226,60401.0,60400.0,1.60524692]
[1726364519947,10.29272226,60401.0,60400.0,1.60524692]
[1726364520822,10.29272226,60401.0,60400.0,1.57345692]
[1726364521250,10.29272226,60401.0,60400.0,1.37200492]
[1726364521481,9.02622226,60401.0,60400.0,1.33889192]
[1726364521685,9.02622226,60401.0,60400.0,1.30577892]
[1726364522745,9.00021741,60401.0,60400.0,1.30577892]
[1726364523873,9.00021741,60401.0,60400.0,1.23955292]
[1726364524735,9.24521516,60401.0,60400.0,1.23155292]
[1726364525181,9.24521516,60401.0,60400.0,1.22055292]
[1726364525825,9.00021741,60401.0,60400.0,1.20955292]
[1726364526359,8.16153325,60401.0,60400.0,1.05605392]
[1726364526579,7.56354408,60401.0,60400.0,0.94982792]
[1726364526805,7.56354408,60401.0,60400.0,0.91671492]
[1726364527267,7.31853325,60401.0,60400.0,0.85048892]
[1726364528853,7.31853325,60401.0,60400.0,0.81737592]
[1726364529067,7.31853325,60401.0,60400.0,0.78426292]
[1726364529532,6.58684125,60401.0,60400.0,0.78426292]
[1726364529798,5.60381615,60401.0,60400.0,1.09556292]
[1726364530460,5.86871215,60401.0,60400.0,1.09556292]
[1726364530673,5.60381615,60401.0,60400.0,1.09556292]
[1726364531820,6.04581615,60401.0,60400.0,1.09556292]
[1726364532067,6.04581615,60401.0,60400.0,1.08012892]
[1726364532967,6.01981138,60401.0,60400.0,1.08012892]
[1726364533634,6.01981138,60401.0,60400.0,0.73635992]
[1726364533850,6.01981138,60401.0,60400.0,0.72535992]
[1726364534962,7.17528438,60401.0,60400.0,0.72535992]
[1726364535185,7.44018038,60401.0,60400.0,0.72535992]
[1726364536087,7.4661846,60401.0,60400.0,0.72535992]
[1726364540514,7.73577606,60401.0,60400.0,0.70405992]
[1726364541405,7.4661846,60401.0,60400.0,0.68405992]
[1726364541870,7.4661846,60401.0,60400.0,0.61820992]
[1726364542369,7.4661846,60401.0,60400.0,0.60005332]
[1726364542836,7.44018038,60401.0,60400.0,0.60005332]
[1726364543283,5.47709738,60401.0,60400.0,1.10905332]
[1726364543501,4.67201338,60401.0,60400.0,1.10905332]
[1726364543960,4.67201338,60401.0,60400.0,1.12720914]
[1726364546213,4.69801793,60401.0,60400.0,1.12720914]
[1726364547102,4.68401793,60401.0,60400.0,1.12720914]
[1726364547820,4.69801793,60401.0,60400.0,1.12720914]
[1726364548667,5.25508993,60401.0,60400.0,1.12720914]
[1726364548912,5.25508993,60401.0,60400.0,1.11620914]
[1726364549339,5.15088393,60401.0,60400.0,1.11620914]
[1726364549560,5.59288393,60401.0,60400.0,1.11620914]
[1726364549790,5.59288393,60401.0,60400.0,1.09805332]
[1726364550694,5.57888393,60401.0,60400.0,1.09805332]
[1726364550925,5.59288393,60401.0,60400.0,1.09805332]
[1726364551154,5.51636793,60401.0,60400.0,1.09805332]
[1726364551370,5.50236793,60401.0,60400.0,1.09805332]
[1726364551816,5.51636793,60401.0,60400.0,1.09805332]
[1726364552454,4.82655893,60401.0,60400.0,1.09805332]
[1726364552671,4.65420467,60401.0,60400.0,1.09805332]
[1726364553124,4.38455893,60401.0,60400.0,1.11620447]
[1726364553352,4.65420467,60401.0,60400.0,1.11620447]
[1726364553587,4.64020467,60401.0,60400.0,1.11620447]
[1726364554045,4.29020467,60401.0,60400.0,1.11620447]
[1726364554343,4.30855438,60401.0,60400.0,1.11620447]
[1726364554826,4.29455438,60401.0,60400.0,1.11620447]
[1726364555064,4.30855438,60401.0,60400.0,1.11620447]
[1726364556023,4.30855438,60401.0,60400.0,1.05377447]
[1726364557478,4.33455803,60401.0,60400.0,1.05377447]
[1726364557709,4.77655803,60401.0,60400.0,1.05377447]
[1726364562016,4.77655803,60401.0,60400.0,0.83281572]
[1726364562234,4.77655803,60401.0,60400.0,0.81466457]
[1726364562903,4.75055438,60401.0,60400.0,0.81466457]
[1726364566086,4.77655774,60401.0,60400.0,0.81466457]
[1726364567158,4.77655774,60401.0,60400.0,0.71466457]
[1726364568960,4.77655774,60401.0,60400.0,0.24205557]
[1726364568961,4.82843245,60401.0,60400.0,0.24205557]
[1726364569406,4.82843245,60401.0,60400.0,0.26020245]
[1726364570339,1.05015,60400.0,60399.0,2.56339553]
[1726364570578,1.05015,60400.0,60398.0,1.4982]
[1726364570579,0.255452,60399.0,60398.0,2.73455153]
[1726364570819,5.835262,60399.0,60398.0,2.69615036]
[1726364571050,6.100167,60399.0,60398.0,2.69615036]
[1726364571292,6.228658,60399.0,60398.0,2.69615036]
[1726364571544,5.934828,60399.0,60398.0,2.69615036]
[1726364571999,5.699083,60399.0,60398.0,2.69615036]
[1726364572459,5.417366,60399.0,60398.0,2.69615036]
[1726364573154,5.445366,60399.0,60398.0,2.69615036]
[1726364573406,5.431366,60399.0,60398.0,2.69615036]
[1726364573632,5.417366,60399.0,60398.0,2.69615036]
[1726364573861,5.431366,60399.0,60398.0,2.69615036]
[1726364574099,5.445366,60399.0,60398.0,2.69615036]
[1726364575128,1.607977,60399.0,60398.0,2.69615036]
[1726364575354,5.71016575,60399.0,60398.0,2.69615036]
[1726364576792,5.71016575,60399.0,60398.0,2.59680836]
[1726364577030,5.87810357,60399.0,60398.0,2.57802639]
[1726364577558,5.69616575,60399.0,60398.0,2.51179839]
[1726364578284,5.69616575,60399.0,60398.0,2.39568776]
[1726364580133,5.71016575,60399.0,60398.0,2.39568776]
[1726364580349,5.69616575,60399.0,60398.0,2.39568776]
[1726364580601,5.71016575,60399.0,60398.0,2.39568776]
[1726364580799,5.71016575,60399.0,60398.0,2.58218776]
[1726364581762,5.71016575,60399.0,60398.0,2.39568776]
[1726364582858,5.684161,60399.0,60398.0,2.39568776]
[1726364583114,5.684161,60399.0,60398.0,2.39733376]
[1726364583346,5.684161,60399.0,60398.0,2.38538459]
[1726364584452,5.656161,60399.0,60398.0,2.38538459]
[1726364584743,5.670161,60399.0,60398.0,2.38538459]
[1726364585408,5.917261,60399.0,60398.0,2.38538459]
[1726364585635,5.917261,60399.0,60398.0,2.31915659]
[1726364585864,6.0324484,60399.0,60398.0,2.07101322]